bitfinex/quotes_SOLUSD_20250310
["timestamp","ask_amount","ask_price","bid_price","bid_amount"]
[1741570018938,38.50233807,127.43,127.41,0.063]
[1741570019339,38.50233807,127.42,127.41,0.063]
[1741570020073,82.4,127.45,127.41,0.063]
[1741570020355,38.50233807,127.44,127.41,0.063]
[1741570021257,38.50233807,127.46,127.41,44.94683807]
[1741570021558,38.50233807,127.46,127.41,6.4445]
[1741570021740,38.50233807,127.45,127.41,6.4445]
[1741570022166,38.50233807,127.44,127.41,6.4445]
[1741570022549,38.50233807,127.44,127.41,14.2931]
[1741570022953,38.50233807,127.45,127.41,14.2931]
[1741570023143,38.50233807,127.47,127.41,52.79543807]
[1741570023339,38.50233807,127.48,127.42,38.50233807]
[1741570023543,38.50233807,127.49,127.43,40.06803807]
[1741570024164,38.50233807,127.47,127.44,7.8468]
[1741570024479,0.03,127.47,127.44,7.8468]
[1741570024842,38.53233807,127.47,127.44,7.8468]
[1741570025061,0.03,127.47,127.44,7.8468]
[1741570026139,0.03,127.47,127.44,147.46603807]
[1741570026337,0.03,127.47,127.45,38.50233807]
[1741570026757,0.03,127.47,127.44,264.06603807]
[1741570026975,0.03,127.47,127.45,38.50233807]
[1741570027280,38.53233807,127.53,127.46,44.96083807]
[1741570027474,38.50233807,127.51,127.47,8.48]
[1741570027646,38.50233807,127.5,127.47,8.48]
[1741570028347,38.50233807,127.5,127.46,87.9584]
[1741570028557,38.50233807,127.5,127.43,1.5657]
[1741570028558,38.50233807,127.47,127.43,1.5657]
[1741570028766,38.50233807,127.46,127.43,9.4129]
[1741570028996,38.50233807,127.47,127.43,1.5657]
[1741570029164,38.50233807,127.47,127.43,9.4131]
[1741570029467,38.50233807,127.49,127.43,47.91543807]
[1741570029968,38.50233807,127.48,127.43,47.91543807]
[1741570030171,38.50233807,127.49,127.43,47.91543807]
[1741570030480,38.50233807,127.47,127.43,1.5657]
[1741570030651,26.49214886,127.51,127.41,88.0687]
[1741570030652,38.50233807,127.44,127.41,88.0687]
[1741570030853,38.50233807,127.43,127.41,88.0687]
[1741570031557,38.50233807,127.44,127.41,88.0687]
[1741570031762,38.50233807,127.43,127.41,81.5629]
[1741570032246,38.50233807,127.43,127.41,0.063]
[1741570032449,38.50233807,127.42,127.41,0.063]
[1741570034059,7.8462,127.45,127.41,0.063]
[1741570034260,66.35033807,127.42,127.41,0.063]
[1741570034560,38.50233807,127.42,127.41,0.063]
[1741570035556,38.50233807,127.43,127.41,0.063]
[1741570036157,38.50233807,127.44,127.41,0.063]
[1741570036562,38.50233807,127.43,127.41,0.063]
[1741570036952,38.50233807,127.42,127.41,0.063]
[1741570038573,46.35033807,127.42,127.41,0.063]
[1741570038872,64.99998693,127.42,127.41,0.063]
[1741570039074,58.50233807,127.42,127.41,0.063]
[1741570039275,38.50233807,127.42,127.41,0.063]
[1741570039971,38.50233807,127.43,127.41,0.063]
[1741570040575,38.50233807,127.42,127.41,0.063]
[1741570043173,84.0709,127.46,127.41,0.063]
[1741570043381,0.03,127.46,127.41,0.063]
[1741570043574,38.50233807,127.43,127.41,0.063]
[1741570043952,38.50233807,127.44,127.41,0.063]
[1741570044981,38.50233807,127.43,127.41,0.063]
[1741570045779,38.50233807,127.42,127.41,0.063]
[1741570046365,24.10356817,127.42,127.41,0.063]
[1741570047873,24.10356817,127.43,127.41,0.063]
[1741570048072,24.10356817,127.44,127.41,0.063]
[1741570048271,24.10356817,127.45,127.41,0.063]
[1741570048972,24.10356817,127.44,127.41,0.063]
[1741570049686,24.10356817,127.44,127.41,7.9116]
[1741570051086,7.8756,127.46,127.41,7.9116]
[1741570051387,24.10356817,127.44,127.41,7.9116]
[1741570053393,24.10356817,127.45,127.41,27.5332]
[1741570053586,0.03,127.46,127.42,24.10356817]
[1741570053891,0.03,127.46,127.45,50.25386817]
[1741570054193,0.0001,127.46,127.45,277.03091703]
[1741570054492,0.0001,127.46,127.45,258.38126817]
[1741570055568,0.0001,127.46,127.45,40.28136817]
[1741570055893,0.0001,127.46,127.45,34.6303]
[1741570056391,0.0001,127.46,127.45,14.6303]
[1741570056768,0.0001,127.46,127.45,8.48]
[1741570057271,0.0001,127.46,127.45,40.42976817]
[1741570058494,0.0001,127.46,127.45,16.3262]
[1741570059798,0.0001,127.46,127.45,8.48]
[1741570060576,0.0001,127.46,127.45,36.3262]
[1741570060976,0.0001,127.46,127.45,28.48]
[1741570061183,0.0001,127.46,127.45,36.3262]
[1741570061384,0.0001,127.46,127.45,28.48]
[1741570061580,0.0001,127.46,127.45,8.48]
[1741570061783,24.10366817,127.46,127.42,193.1503]
[1741570061984,24.10356817,127.44,127.41,0.063]
[1741570062181,24.10356817,127.45,127.41,7.9116]
[1741570062782,0.0001,127.46,127.41,7.9116]
[1741570062986,24.10356817,127.45,127.41,7.9116]
[1741570063379,0.0001,127.46,127.41,7.9116]
[1741570063581,24.10356817,127.45,127.41,7.9116]
[1741570063882,7.8458,127.46,127.41,0.063]
[1741570063883,24.10356817,127.44,127.41,0.063]
[1741570064096,24.10356817,127.45,127.41,0.063]
[1741570064478,24.10356817,127.44,127.41,0.063]
[1741570064902,24.10356817,127.45,127.41,0.063]
[1741570065079,24.10356817,127.44,127.41,0.063]
[1741570065702,24.10356817,127.45,127.41,0.063]
[1741570065901,0.0001,127.46,127.41,0.063]
[1741570066102,24.10356817,127.43,127.41,0.063]
[1741570066595,24.10356817,127.44,127.41,0.063]
[1741570066998,24.10366817,127.46,127.41,0.063]
[1741570067505,24.10366817,127.46,127.41,24.16656817]
[1741570067683,24.10366817,127.46,127.41,0.063]
[1741570067883,24.10356817,127.44,127.41,0.063]
[1741570068084,24.10356817,127.43,127.41,0.063]
[1741570068298,24.10356817,127.44,127.41,0.063]
[1741570069107,24.10356817,127.45,127.41,0.063]
[1741570069406,24.10366817,127.46,127.41,0.063]
[1741570070413,24.10366817,127.46,127.41,24.16656817]
[1741570070791,24.10366817,127.46,127.42,7.848]
[1741570070991,24.10356817,127.45,127.42,7.848]
[1741570071214,24.10366817,127.46,127.42,7.848]
[1741570072592,24.10356817,127.45,127.41,0.063]
[1741570072897,24.10356817,127.45,127.41,7.9116]
[1741570073813,24.10366817,127.46,127.41,7.9116]
[1741570075094,24.10356817,127.43,127.41,0.063]
[1741570076211,24.10356817,127.44,127.41,0.063]
[1741570076410,24.10366817,127.46,127.41,24.16656817]
[1741570076912,0.0001,127.46,127.41,222.26646817]
[1741570077108,0.0001,127.46,127.43,24.10356817]
[1741570077421,0.0001,127.46,127.43,32.56356817]
[1741570078224,0.0001,127.46,127.44,24.10356817]
[1741570078429,0.0001,127.46,127.44,31.95036817]
[1741570078913,0.0001,127.46,127.44,7.8468]
[1741570080621,0.0001,127.46,127.45,24.10356817]
[1741570080820,1.6072,127.53,127.45,24.10356817]
[1741570080821,9.4485,127.53,127.45,24.10356817]
[1741570080997,24.10356817,127.51,127.46,24.10356817]
[1741570081197,24.10356817,127.48,127.44,205.9467]
[1741570081428,18.64964886,127.5,127.44,7.8468]
[1741570081594,24.10356817,127.45,127.41,206.0114]
[1741570081794,24.10356817,127.45,127.41,7.9115]
[1741570082390,24.10356817,127.46,127.41,32.01506817]
[1741570082594,7.8437,127.49,127.41,7.9115]
[1741570082815,24.10356817,127.45,127.41,7.9115]
[1741570083021,24.10356817,127.46,127.41,7.9115]
[1741570084025,24.10356817,127.44,127.41,0.063]
[1741570084193,24.10356817,127.45,127.41,0.063]
[1741570084405,0.03,127.46,127.43,24.10356817]
[1741570084598,0.03,127.46,127.44,7.8468]
[1741570085320,0.03,127.46,127.43,205.9471]
[1741570085526,24.13356817,127.46,127.43,205.9471]
[1741570085900,24.13356817,127.46,127.43,198.0999]
[1741570085901,24.10356817,127.45,127.43,198.0999]
[1741570086910,24.13356817,127.46,127.43,205.947]
[1741570087121,0.03,127.46,127.43,205.947]
[1741570087324,0.03,127.46,127.43,249.66916817]
[1741570087697,0.03,127.46,127.45,24.10356817]
[1741570087903,24.13356817,127.53,127.46,6.0782]
[1741570088098,0.03,127.53,127.48,24.10356817]
[1741570088598,0.03,127.53,127.49,24.10356817]
[1741570089066,0.03,127.53,127.5,59.99446817]
[1741570089229,0.03,127.53,127.52,24.10356817]
[1741570090115,0.0001,127.53,127.52,48.87664284]
[1741570090421,0.0001,127.53,127.52,253.47274284]
[1741570091118,0.0001,127.53,127.52,261.31464284]
[1741570091323,0.0001,127.53,127.52,262.83834284]
[1741570091823,0.0001,127.53,127.52,256.71491703]
[1741570092026,0.0001,127.53,127.52,204.5961]
[1741570092214,0.0001,127.53,127.52,198.0999]
[1741570093021,0.0001,127.53,127.5,40.38656817]
[1741570093227,0.0001,127.53,127.5,8.44]
[1741570093431,24.10366817,127.53,127.5,8.44]
[1741570093736,24.10356817,127.51,127.46,230.64346817]
[1741570094037,24.10356817,127.51,127.46,121.88896817]
[1741570094645,24.10356817,127.51,127.46,114.04346817]
[1741570094813,24.10356817,127.51,127.46,89.9399]
[1741570095018,24.10356817,127.51,127.46,114.04346817]
[1741570095740,24.10356817,127.5,127.46,8.44]
[1741570095919,24.10356817,127.52,127.46,40.38906817]
[1741570096241,24.10366817,127.53,127.47,24.10356817]
[1741570096440,24.10366817,127.53,127.48,24.10356817]
[1741570096821,31.94496817,127.53,127.48,24.10356817]
[1741570097026,24.10366817,127.53,127.48,24.10356817]
[1741570097617,0.0001,127.53,127.48,24.10356817]
[1741570097822,24.10366817,127.53,127.48,24.10356817]
[1741570098219,0.0001,127.53,127.48,24.10356817]
[1741570099519,0.0001,127.53,127.49,7.8437]
[1741570101936,0.0001,127.53,127.52,44.10356817]
[1741570102141,0.5,127.58,127.53,44.10356817]
[1741570102446,24.60356817,127.58,127.53,44.10356817]
[1741570102933,24.60356817,127.58,127.53,20.0]
[1741570103925,24.10356817,127.57,127.53,20.0]
[1741570104135,24.10356817,127.57,127.53,27.841]
[1741570105036,24.60356817,127.58,127.53,27.841]
[1741570105650,24.10356817,127.57,127.53,27.841]
[1741570106342,24.60356817,127.58,127.53,27.841]
[1741570106556,24.10356817,127.57,127.53,27.841]
[1741570106741,24.10356817,127.56,127.52,8.44]
[1741570106946,24.10356817,127.55,127.52,8.44]
[1741570107823,24.10356817,127.56,127.52,16.2817]
[1741570108027,0.03,127.57,127.52,40.38526817]
[1741570108245,0.03,127.57,127.54,24.10356817]
[1741570110139,0.03,127.57,127.55,7.84]
[1741570111240,0.03,127.57,127.55,31.94356817]
[1741570111639,0.03,127.57,127.55,7.84]
[1741570112554,0.03,127.57,127.55,31.94356817]
[1741570114451,0.03,127.57,127.56,24.10356817]
[1741570116056,1.5998,127.66,127.59,20.0]
[1741570116236,25.70336817,127.66,127.6,32.52356817]
[1741570116567,25.70336817,127.66,127.61,7.8363]
[1741570119739,24.60356817,127.65,127.61,7.8363]
[1741570119939,24.60356817,127.65,127.6,32.52356817]
[1741570120145,24.10356817,127.64,127.6,8.42]
[1741570120378,8.3339,127.65,127.59,81.4999]
[1741570120579,24.10356817,127.61,127.59,81.4999]
[1741570120873,24.10356817,127.61,127.56,40.36276817]
[1741570121234,24.10356817,127.62,127.57,24.10356817]
[1741570121437,24.10356817,127.63,127.58,24.10356817]
[1741570121638,24.10356817,127.62,127.57,24.10356817]
[1741570122036,90.7339,127.65,127.58,24.10356817]
[1741570122283,24.10356817,127.63,127.57,24.10356817]
[1741570122585,24.10356817,127.63,127.58,7.8382]
[1741570122959,0.5,127.65,127.6,24.10356817]
[1741570123169,0.5,127.65,127.61,52.52356817]
[1741570123481,24.60356817,127.65,127.61,28.42]
[1741570123656,24.10356817,127.64,127.61,8.42]
[1741570124679,24.10356817,127.63,127.61,8.42]
[1741570127275,31.93876817,127.63,127.61,8.42]
[1741570128488,24.10356817,127.63,127.61,8.42]
[1741570129392,31.93876817,127.63,127.61,8.42]
[1741570129576,24.10356817,127.63,127.61,8.42]
[1741570130573,7.8345,127.64,127.61,8.42]
[1741570130791,24.10356817,127.63,127.61,8.42]
[1741570130962,24.10356817,127.64,127.61,16.2563]
[1741570131162,24.10356817,127.64,127.61,8.42]
[1741570131464,0.03,127.63,127.61,16.2562]
[1741570131657,0.03,127.63,127.61,40.35976817]
[1741570131863,0.03,127.63,127.62,44.10356817]
[1741570132987,0.03,127.63,127.62,51.93926817]
[1741570134461,0.03,127.63,127.62,27.8357]
[1741570134661,0.03,127.63,127.62,250.03916817]
[1741570135083,0.03,127.63,127.62,225.9356]
[1741570135461,0.03,127.63,127.62,250.03916817]
[1741570136992,0.5,127.65,127.62,171.67821703]
[1741570137306,0.03,127.66,127.65,18.64964886]
[1741570137588,0.03,127.66,127.65,198.0999]
[1741570139089,0.03,127.66,127.65,230.03736817]
[1741570140282,0.0001,127.66,127.65,248.68701703]
[1741570141262,0.03,127.68,127.67,38.64964886]
[1741570141477,0.063,127.69,127.68,42.75321703]
[1741570141681,0.063,127.69,127.68,240.85311703]
[1741570142858,0.063,127.69,127.68,222.20346817]
[1741570143377,0.5,127.73,127.68,268.26531703]
[1741570143687,0.5,127.73,127.7,24.10356817]
[1741570144197,0.063,127.74,127.72,42.75321703]
[1741570144497,0.063,127.75,127.74,44.10356817]
[1741570144870,0.063,127.75,127.73,32.50356817]
[1741570145382,0.063,127.75,127.73,40.33196817]
[1741570145583,0.063,127.75,127.74,24.10356817]
[1741570145960,0.0001,127.75,127.74,240.85311703]
[1741570146160,0.03,127.76,127.75,18.64964886]
[1741570146161,0.0001,127.76,127.75,18.64964886]
[1741570146360,0.0001,127.76,127.75,222.20346817]
[1741570147066,0.0001,127.76,127.75,198.0999]
[1741570148089,0.0001,127.76,127.75,205.9276]
[1741570148271,0.0001,127.76,127.75,7.8277]
[1741570148477,0.0001,127.76,127.75,31.93126817]
[1741570148772,0.0001,127.76,127.75,230.03116817]
[1741570148988,0.0001,127.76,127.75,205.9276]
[1741570149787,0.0001,127.76,127.75,81.4999]
[1741570149985,0.0001,127.76,127.75,89.3276]
[1741570150484,0.0001,127.76,127.75,113.43116817]
[1741570150988,0.0001,127.76,127.75,89.3276]
[1741570151500,0.0001,127.76,127.75,113.43116817]
[1741570151785,0.0001,127.76,127.75,81.4999]
[1741570153289,0.0001,127.76,127.75,113.43116817]
[1741570153689,0.0001,127.76,127.75,248.68081703]
[1741570154077,6.1132,127.86,127.79,20.0]
[1741570154284,24.10356817,127.85,127.8,32.50356817]
[1741570155175,30.21676817,127.86,127.8,32.50356817]
[1741570155378,24.10356817,127.85,127.81,7.8241]
[1741570155595,0.5,127.88,127.81,31.92766817]
[1741570155891,24.10356817,127.87,127.82,24.10356817]
[1741570156093,24.10356817,127.85,127.81,198.0999]
[1741570156283,24.10356817,127.84,127.8,16.2245]
[1741570156482,1.5344,127.85,127.81,24.10356817]
[1741570156680,2.0344,127.88,127.83,24.10356817]
[1741570156880,26.13796817,127.88,127.83,24.10356817]
[1741570157082,24.10356817,127.87,127.82,24.10356817]
[1741570157395,24.10356817,127.86,127.81,222.20346817]
[1741570157571,24.10356817,127.85,127.81,198.0999]
[1741570157771,24.10356817,127.86,127.81,89.3239]
[1741570157977,24.10356817,127.86,127.81,113.42746817]
[1741570158594,24.10356817,127.86,127.81,89.3239]
[1741570158993,2.0344,127.88,127.81,113.42746817]
[1741570159184,26.13796817,127.88,127.83,24.10356817]
[1741570159382,0.5,127.88,127.85,24.10356817]
[1741570159790,0.5,127.88,127.84,24.10356817]
[1741570159985,24.60356817,127.88,127.83,24.10356817]
[1741570160291,24.10356817,127.87,127.82,24.10356817]
[1741570160477,24.10356817,127.86,127.82,8.38]
[1741570161296,24.10356817,127.86,127.81,230.02746817]
[1741570161480,24.10356817,127.84,127.81,81.4999]
[1741570161675,24.10356817,127.85,127.81,89.3239]
[1741570161871,24.10356817,127.85,127.81,81.4999]
[1741570162286,24.10356817,127.85,127.8,24.10356817]
[1741570162596,24.10356817,127.84,127.79,156.90876817]
[1741570162895,24.10356817,127.82,127.78,8.38]
[1741570163095,24.10356817,127.82,127.77,16.2063]
[1741570163703,24.10356817,127.8,127.77,8.38]
[1741570163894,24.10356817,127.79,127.76,267.9199]
[1741570164106,24.10356817,127.8,127.76,267.9199]
[1741570164284,1.644,127.81,127.76,299.85036817]
[1741570164484,25.74756817,127.81,127.76,299.85036817]
[1741570164701,25.74756817,127.81,127.76,275.7468]
[1741570164879,25.74756817,127.81,127.76,267.9199]
[1741570165075,24.10356817,127.8,127.76,267.9199]
[1741570165499,24.10356817,127.79,127.76,267.9199]
[1741570166380,24.10356817,127.78,127.75,8.38]
[1741570166583,24.10356817,127.77,127.73,8.38]
[1741570166796,24.10356817,127.78,127.73,8.38]
[1741570167309,7.8247,127.8,127.72,81.4999]
[1741570167310,24.10356817,127.76,127.72,81.4999]
[1741570167597,24.10356817,127.76,127.72,89.3293]
[1741570168003,31.93016817,127.77,127.72,89.3293]
[1741570168403,31.93016817,127.77,127.72,81.4999]
[1741570168776,24.10356817,127.76,127.72,81.4999]
[1741570168982,24.10356817,127.74,127.72,0.063]
[1741570169205,24.10356817,127.75,127.72,0.063]
[1741570171800,31.93136817,127.75,127.72,0.063]
[1741570172305,24.10356817,127.76,127.72,0.063]
[1741570172485,24.10356817,127.77,127.72,0.063]
[1741570172678,1.644,127.81,127.72,216.81254886]
[1741570172885,25.74756817,127.81,127.75,24.10356817]
[1741570173087,24.10356817,127.8,127.76,8.38]
[1741570173788,24.10356817,127.79,127.76,16.2071]
[1741570174003,24.10356817,127.8,127.76,16.2071]
[1741570176619,24.10356817,127.78,127.76,8.38]
[1741570176792,24.10356817,127.8,127.76,16.2071]
[1741570178002,24.10356817,127.79,127.76,8.38]
[1741570178197,24.10356817,127.77,127.72,222.26646817]
[1741570178398,24.10356817,127.77,127.73,7.829]
[1741570178713,24.10356817,127.74,127.72,0.063]
[1741570179025,24.10356817,127.73,127.72,0.063]
[1741570179624,24.10356817,127.74,127.72,0.063]
[1741570180194,1.5597,127.75,127.72,0.063]
[1741570180413,24.10356817,127.76,127.72,0.063]
[1741570180726,24.10356817,127.74,127.72,0.063]
[1741570181141,24.10356817,127.73,127.72,0.063]
[1741570181521,24.10356817,127.74,127.72,0.063]
[1741570181735,24.10356817,127.73,127.72,0.063]
[1741570182411,31.93256817,127.73,127.72,0.063]
[1741570182907,50.58221703,127.73,127.72,0.063]
[1741570183106,52.20211703,127.73,127.72,0.063]
[1741570184016,21.6199,127.73,127.72,0.063]
[1741570184318,45.72346817,127.73,127.72,0.063]
[1741570185416,53.55246817,127.73,127.72,0.063]
[1741570185590,45.72346817,127.73,127.72,0.063]
[1741570185794,53.55246817,127.73,127.72,0.063]
[1741570187504,25.72346817,127.73,127.72,0.063]
[1741570187698,7.8279,127.75,127.72,0.063]
[1741570187909,82.4,127.76,127.72,0.063]
[1741570187910,20.0,127.76,127.72,0.063]
[1741570188109,44.10356817,127.76,127.72,0.063]
[1741570188317,24.10356817,127.76,127.72,0.063]
[1741570189001,24.10356817,127.75,127.72,0.063]
[1741570189315,24.10356817,127.74,127.72,0.063]
[1741570189715,24.10356817,127.75,127.72,0.063]
[1741570190633,24.10356817,127.76,127.72,0.063]
[1741570191431,24.10356817,127.75,127.72,0.063]
[1741570191839,7.8265,127.77,127.72,0.063]
[1741570191840,24.10356817,127.74,127.72,0.063]
[1741570192127,24.10356817,127.75,127.72,0.063]
[1741570192723,7.8272,127.76,127.72,0.063]
[1741570192922,24.10356817,127.75,127.72,0.063]
[1741570194621,24.10356817,127.74,127.72,0.063]
[1741570195422,24.10356817,127.73,127.72,0.063]
[1741570197521,24.10356817,127.74,127.72,0.063]
[1741570197929,24.10356817,127.73,127.72,0.063]
[1741570198923,31.93256817,127.73,127.72,0.063]
[1741570199543,50.58221703,127.73,127.72,0.063]
[1741570200817,32.16956817,127.73,127.68,0.568]
[1741570201023,24.10356817,127.7,127.68,0.568]
[1741570201448,24.10356817,127.69,127.68,0.568]
[1741570202341,15.8952,127.73,127.68,0.568]
[1741570202525,24.10356817,127.72,127.68,7.9]
[1741570202718,24.10356817,127.74,127.68,40.36356817]
[1741570202914,20.17494886,127.76,127.68,40.36356817]
[1741570202915,7.8262,127.78,127.7,7.8308]
[1741570203225,24.10356817,127.74,127.7,27.4079]
[1741570203940,24.10356817,127.74,127.7,7.8308]
[1741570204160,24.10356817,127.73,127.7,7.8308]
[1741570204315,24.10356817,127.72,127.69,7.8314]
[1741570204643,18.64964886,127.76,127.69,7.8314]
[1741570204830,24.10356817,127.73,127.69,7.8314]
[1741570205332,24.10356817,127.71,127.68,8.491]
[1741570205519,0.03,127.69,127.68,16.323]
[1741570205726,0.03,127.69,127.68,40.42656817]
[1741570206344,24.10356817,127.74,127.68,258.10666817]
[1741570206640,24.10356817,127.73,127.68,238.52646817]
[1741570206941,24.10356817,127.74,127.7,7.8308]
[1741570209551,7.8266,127.77,127.7,7.8308]
[1741570209734,24.10356817,127.78,127.72,24.10356817]
[1741570209935,82.4,127.79,127.73,24.10356817]
[1741570210132,24.10356817,127.78,127.73,24.10356817]
[1741570210334,38.34520743,127.78,127.73,38.34520743]
[1741570210635,38.34520743,127.76,127.72,7.8296]
[1741570210837,38.34520743,127.74,127.7,207.4407]
[1741570211036,38.34520743,127.72,127.68,220.5663]
[1741570211238,38.34520743,127.7,127.68,0.131]
[1741570211443,38.34520743,127.72,127.68,7.963]
[1741570211658,102.63014886,127.75,127.68,46.30820743]
[1741570211948,38.34520743,127.72,127.68,7.963]
[1741570212341,38.34520743,127.72,127.68,0.131]
[1741570212536,38.34520743,127.71,127.68,0.131]
[1741570212852,38.34520743,127.7,127.68,0.131]
[1741570213055,38.34520743,127.71,127.68,7.9629]
[1741570213634,18.64964886,127.73,127.68,7.9629]
[1741570213835,38.34520743,127.71,127.68,0.131]
[1741570214353,38.34520743,127.71,127.68,7.9629]
[1741570215441,38.34520743,127.7,127.68,7.9629]
[1741570215643,38.34520743,127.71,127.68,7.9629]
[1741570216242,38.34520743,127.72,127.68,7.9629]
[1741570216440,38.34520743,127.7,127.68,7.9629]
[1741570216743,38.34520743,127.71,127.68,7.9629]
[1741570217363,38.34520743,127.72,127.68,7.9629]
[1741570217933,38.34520743,127.71,127.68,7.9629]
[1741570218455,38.34520743,127.71,127.68,0.131]
[1741570218652,38.34520743,127.7,127.68,0.131]
[1741570218957,20.0,127.7,127.68,0.131]
[1741570219139,90.76,127.73,127.68,7.963]
[1741570219341,7.8284,127.74,127.68,7.963]
[1741570219647,38.34520743,127.73,127.68,46.30820743]
[1741570219868,38.34520743,127.71,127.68,0.131]
[1741570220161,38.34520743,127.7,127.68,0.131]
[1741570220336,38.34520743,127.69,127.68,0.131]
[1741570220536,18.64964886,127.72,127.68,0.131]
[1741570220747,38.34520743,127.7,127.68,0.131]
[1741570221037,38.34520743,127.69,127.68,0.131]
[1741570222146,38.34520743,127.7,127.68,7.963]
[1741570222457,58.34520743,127.72,127.68,7.963]
[1741570222637,38.34520743,127.7,127.68,0.131]
[1741570223039,38.34520743,127.71,127.68,7.9629]
[1741570223355,38.34520743,127.71,127.68,0.131]
[1741570223951,38.34520743,127.7,127.68,0.131]
[1741570225464,27.8296,127.72,127.68,0.131]
[1741570225651,38.34520743,127.71,127.68,0.131]
[1741570226042,20.0,127.66,127.59,1.6002]
[1741570226240,38.34520743,127.63,127.59,1.6002]
[1741570226658,38.34520743,127.66,127.61,46.68650743]
[1741570226856,38.34520743,127.68,127.62,38.34520743]
[1741570227251,38.34520743,127.67,127.62,38.34520743]
[1741570227453,38.34520743,127.66,127.61,47.21020743]
[1741570227748,38.34520743,127.67,127.61,47.21020743]
[1741570228186,38.34520743,127.67,127.61,16.7011]
[1741570228464,38.34520743,127.66,127.61,16.7012]
[1741570228640,38.34520743,127.66,127.61,55.04640743]
[1741570228840,38.34520743,127.66,127.61,55.10940743]
[1741570229266,38.34520743,127.66,127.61,16.7642]
[1741570230141,38.34520743,127.65,127.61,8.928]
[1741570230367,38.34520743,127.64,127.61,8.928]
[1741570230573,147.22685629,127.68,127.61,8.928]
[1741570230574,38.34520743,127.63,127.61,0.568]
[1741570231250,38.34520743,127.62,127.61,0.568]
[1741570231859,7.8356,127.63,127.61,0.568]
[1741570232059,38.34520743,127.62,127.61,0.568]
[1741570233854,46.18090743,127.62,127.61,0.568]
[1741570234469,84.52611486,127.62,127.61,0.568]
[1741570234767,103.17576372,127.62,127.61,0.568]
[1741570235866,84.52611486,127.62,127.61,0.568]
[1741570236040,20.0,127.62,127.61,0.568]
[1741570236244,58.34520743,127.62,127.61,0.568]
[1741570237851,66.18090743,127.62,127.61,0.568]
[1741570238048,123.17576372,127.62,127.61,0.568]
[1741570238263,103.17576372,127.62,127.61,0.568]
[1741570239567,84.52611486,127.62,127.61,0.568]
[1741570239767,103.17576372,127.62,127.61,0.568]
[1741570241079,38.34520743,127.62,127.61,0.568]
[1741570241384,56.99485629,127.62,127.61,0.568]
[1741570241696,185.57576372,127.62,127.61,0.568]
[1741570242851,103.17576372,127.62,127.61,0.568]
[1741570244288,74.57269758,127.62,127.61,0.568]
[1741570245958,88.8299,127.66,127.61,0.568]
[1741570246167,1.574,127.67,127.61,32.44797436]
[1741570246381,24.04367436,127.66,127.61,32.44797436]
[1741570246669,24.04367436,127.64,127.61,0.568]
[1741570246875,24.04367436,127.62,127.61,0.568]
[1741570247249,101.04964886,127.66,127.61,0.568]
[1741570247250,82.4,127.66,127.61,0.568]
[1741570247454,20.0,127.64,127.61,0.568]
[1741570248184,24.04367436,127.65,127.61,8.4043]
[1741570248394,38.41678589,127.66,127.61,53.38238589]
[1741570248766,38.41678589,127.65,127.61,14.9656]
[1741570249855,38.41678589,127.65,127.61,7.1293]
[1741570250054,38.41678589,127.64,127.61,7.1293]
[1741570250781,38.41678589,127.63,127.61,0.568]
[1741570251078,38.41678589,127.62,127.61,0.568]
[1741570251586,95.48322064,127.62,127.61,0.568]
[1741570252690,18.64964886,127.61,127.6,0.063]
[1741570252999,20.0,127.57,127.55,0.063]
[1741570253168,38.41678589,127.56,127.55,0.063]
[1741570256080,38.41678589,127.6,127.55,45.11348589]
[1741570256290,7.9653,127.65,127.57,38.41678589]
[1741570256291,18.64964886,127.64,127.57,38.41678589]
[1741570256475,82.4,127.67,127.59,38.41678589]
[1741570256663,38.41678589,127.64,127.6,7.8369]
[1741570257967,82.4,127.67,127.6,7.8369]